bitfinex/quotes_SOLUSD_20220306
["timestamp","ask_amount","ask_price","bid_price","bid_amount"]
[1646527673141,1.52388155,89.549,89.497,24.3058]
[1646527673343,5.585,89.548,89.497,24.3058]
[1646527673742,7.10888155,89.548,89.497,24.3058]
[1646527673942,1.52388155,89.549,89.497,24.3058]
[1646527674141,5.585,89.548,89.497,24.3058]
[1646527675041,7.10888155,89.548,89.497,24.3058]
[1646527675242,1.52388155,89.548,89.497,24.3058]
[1646527675441,1.52388155,89.549,89.497,24.3058]
[1646527675642,5.585,89.548,89.497,24.3058]
[1646527675844,7.10888155,89.548,89.497,24.3058]
[1646527676043,1.52388155,89.549,89.497,24.3058]
[1646527676249,7.10888155,89.548,89.497,24.3058]
[1646527676449,1.52388155,89.548,89.497,24.3058]
[1646527677443,1.52388155,89.551,89.497,24.3058]
[1646527677646,1.52388155,89.549,89.497,24.3058]
[1646527678448,1.52388155,89.547,89.497,24.3058]
[1646527679045,1.52388155,89.547,89.497,23.3058]
[1646527679245,1.52388155,89.545,89.497,23.3058]
[1646527680247,1.52388155,89.542,89.497,23.3058]
[1646527680445,1.52388155,89.534,89.497,23.3058]
[1646527680646,1.52388155,89.537,89.497,23.3058]
[1646527681249,1.52388155,89.536,89.497,23.3058]
[1646527682047,1.52388155,89.537,89.497,23.3058]
[1646527682448,1.52388155,89.536,89.497,23.3058]
[1646527682848,1.52388155,89.537,89.497,23.3058]
[1646527685756,1.52388155,89.538,89.497,23.3058]
[1646527691190,1.52388155,89.537,89.497,23.3058]
[1646527693288,5.585,89.552,89.497,23.3058]
[1646527693289,1.52388155,89.539,89.498,69.86613526]
[1646527693486,1.52388155,89.545,89.498,78.98613526]
[1646527693687,3.04079652,89.578,89.501,67.03]
[1646527693892,12.21585395,89.61,89.5,15.99]
[1646527693893,3.04079652,89.589,89.503,71.79836333]
[1646527694086,3.04079652,89.6,89.503,71.79836333]
[1646527694291,6.10712539,89.603,89.505,67.03]
[1646527694488,5.583,89.602,89.505,67.03]
[1646527694688,52.8367491,89.604,89.521,67.03]
[1646527694887,52.8367491,89.604,89.532,57.06862667]
[1646527695089,52.8367491,89.604,89.533,67.03]
[1646527695588,52.8367491,89.604,89.533,69.86613526]
[1646527695789,52.8367491,89.604,89.534,2.83613526]
[1646527696189,52.8367491,89.604,89.541,67.03]
[1646527698591,5.582,89.603,89.542,67.03]
[1646527699793,5.582,89.603,89.534,69.86613526]
[1646527700192,5.582,89.603,89.535,2.83613526]
[1646527700893,52.8367491,89.604,89.535,2.83613526]
[1646527701393,5.582,89.603,89.535,2.83613526]
[1646527705899,5.582,89.603,89.541,67.03]
[1646527706099,5.582,89.626,89.541,67.03]
[1646527706300,5.582,89.626,89.542,2.83613526]
[1646527706500,5.582,89.626,89.543,67.03]
[1646527706903,52.27166103,89.625,89.544,2.83613526]
[1646527707102,52.27166103,89.625,89.551,67.03]
[1646527707500,52.27166103,89.625,89.552,2.83613526]
[1646527709001,111.5,89.624,89.552,2.83613526]
[1646527709202,111.5,89.622,89.544,67.03]
[1646527709401,111.5,89.62,89.544,67.03]
[1646527709807,5.581,89.619,89.544,67.03]
[1646527710204,111.5,89.618,89.534,67.03]
[1646527710404,111.5,89.616,89.534,67.03]
[1646527710605,111.5,89.614,89.534,67.03]
[1646527710805,111.5,89.612,89.534,67.03]
[1646527711008,111.5,89.61,89.534,67.03]
[1646527711306,5.582,89.609,89.534,67.03]
[1646527711504,29.2524,89.609,89.534,67.03]
[1646527712605,29.2524,89.609,89.536,67.03]
[1646527717310,23.6704,89.609,89.536,67.03]
[1646527719509,5.582,89.608,89.536,67.03]
[1646527721514,6.10670673,89.607,89.536,67.03]
[1646527721715,5.582,89.606,89.536,67.03]
[1646527722118,6.10670673,89.605,89.536,67.03]
[1646527722315,5.582,89.604,89.536,67.03]
[1646527722719,5.582,89.608,89.535,23.9497]
[1646527723117,6.10672843,89.607,89.535,23.9497]
[1646527723316,3.04079652,89.605,89.535,23.9497]
[1646527723518,5.582,89.604,89.535,23.9497]
[1646527723916,6.10672843,89.603,89.535,23.9497]
[1646527724118,5.582,89.602,89.535,23.9497]
[1646527724319,6.10672843,89.601,89.535,23.9497]
[1646527724519,5.582,89.6,89.535,23.9497]
[1646527724818,17.70923289,89.598,89.535,23.9497]
[1646527725018,5.582,89.597,89.536,67.03]
[1646527725218,28.1264,89.597,89.536,67.03]
[1646527726019,22.5444,89.597,89.536,67.03]
[1646527728439,6.10676629,89.596,89.536,67.03]
[1646527728837,22.5444,89.597,89.536,67.03]
[1646527729040,6.10677367,89.596,89.536,67.03]
[1646527729437,5.582,89.595,89.536,67.03]
[1646527729637,5.582,89.596,89.536,67.03]
[1646527730038,5.582,89.596,89.536,69.86613526]
[1646527730443,5.582,89.596,89.536,67.03]
[1646527733644,22.5444,89.597,89.536,67.03]
[1646527733844,6.10674533,89.596,89.536,67.03]
[1646527737847,5.582,89.595,89.536,67.03]
[1646527738145,6.10674533,89.594,89.536,67.03]
[1646527738547,6.10674533,89.595,89.536,67.03]
[1646527738747,5.582,89.594,89.536,67.03]
[1646527738946,6.10674533,89.593,89.536,67.03]
[1646527739350,6.10674533,89.595,89.536,67.03]
[1646527739548,5.582,89.594,89.536,67.03]
[1646527739749,6.10674533,89.593,89.536,67.03]
[1646527739948,6.10674533,89.595,89.536,67.03]
[1646527740352,9.14754185,89.595,89.536,67.03]
[1646527742151,6.10674533,89.595,89.536,67.03]
[1646527743552,5.582,89.594,89.536,67.03]
[1646527743754,6.10674533,89.593,89.536,67.03]
[1646527744755,3.04079652,89.594,89.536,67.03]
[1646527744952,6.10674533,89.592,89.536,67.03]
[1646527745152,9.14754185,89.594,89.536,67.03]
[1646527745352,3.04079652,89.594,89.536,67.03]
[1646527745553,5.582,89.594,89.536,67.03]
[1646527745756,6.10674533,89.593,89.536,67.03]
[1646527747357,5.582,89.592,89.536,67.03]
[1646527747556,6.10674533,89.591,89.536,67.03]
[1646527748055,6.10674533,89.593,89.536,67.03]
[1646527748255,5.582,89.592,89.536,67.03]
[1646527748456,6.10674533,89.591,89.536,67.03]
[1646527749054,5.582,89.594,89.536,67.03]
[1646527749055,6.10674533,89.593,89.536,67.03]
[1646527749257,6.10674533,89.59,89.536,67.03]
[1646527749457,6.10674533,89.591,89.536,67.03]
[1646527749655,6.10674533,89.593,89.536,67.03]
[1646527749856,5.582,89.592,89.536,67.03]
[1646527750055,6.10674533,89.591,89.536,67.03]
[1646527750256,5.582,89.59,89.536,67.03]
[1646527750455,6.10674533,89.589,89.536,67.03]
[1646527750755,5.582,89.588,89.536,67.03]
[1646527751055,6.10674533,89.587,89.536,67.03]
[1646527751256,28.3391,89.586,89.536,67.03]
[1646527751458,22.7571,89.586,89.536,67.03]
[1646527752458,3.04079652,89.597,89.541,67.03]
[1646527752760,3.04079652,89.609,89.541,74.37]
[1646527752959,3.04079652,89.616,89.542,2.83613526]
[1646527753258,3.04079652,89.617,89.545,67.03]
[1646527753462,6.10538156,89.615,89.551,67.03]
[1646527753659,6.10538156,89.618,89.551,67.03]
[1646527753860,22.842,89.619,89.551,67.03]
[1646527754161,22.842,89.619,89.552,2.83613526]
[1646527755159,22.842,89.619,89.561,67.03]
[1646527755360,22.842,89.619,89.563,67.03]
[1646527759269,5.58,89.618,89.562,70.43782106]
[1646527763471,22.842,89.619,89.562,70.43782106]
[1646527764073,22.842,89.619,89.563,67.03]
[1646527767173,5.58,89.618,89.563,67.03]
[1646527768776,22.842,89.619,89.563,67.03]
[1646527779609,6.10559974,89.618,89.563,67.03]
[1646527780107,3.04079652,89.617,89.563,67.03]
[1646527780308,15.26528785,89.616,89.563,67.03]
[1646527780509,6.10559974,89.615,89.563,67.03]
[1646527781809,6.10559974,89.615,89.562,70.43782106]
[1646527782009,6.10559974,89.615,89.563,67.03]
[1646527785818,11.68659974,89.615,89.563,67.03]
[1646527786015,6.10559974,89.614,89.563,67.03]
[1646527788020,22.842,89.619,89.563,67.03]
[1646527788021,5.581,89.618,89.571,67.03]
[1646527788218,22.842,89.619,89.573,67.03]
[1646527792621,22.842,89.619,89.575,67.03]
[1646527792822,22.842,89.619,89.576,5.58]
[1646527793827,22.842,89.619,89.575,5.58]
[1646527799654,22.842,89.619,89.574,5.58]
[1646527800056,22.842,89.619,89.573,67.03]
[1646527803062,22.842,89.619,89.574,5.58]
[1646527803762,22.842,89.619,89.573,67.03]
[1646527813676,1.52246865,89.608,89.573,67.03]
[1646527813875,1.52246865,89.606,89.573,67.03]
[1646527814278,1.52246865,89.605,89.573,67.03]
[1646527815380,1.52246865,89.606,89.573,67.03]
[1646527815579,1.52246865,89.603,89.573,67.03]
[1646527815976,1.52246865,89.601,89.573,67.03]
[1646527816780,1.52246865,89.6,89.573,67.03]
[1646527817086,1.52246865,89.602,89.573,67.03]
[1646527817279,1.52246865,89.601,89.573,67.03]
[1646527818579,1.52246865,89.601,89.558,2.83613526]
[1646527818792,1.52246865,89.593,89.557,22.5244]
[1646527819180,1.52246865,89.586,89.557,22.5244]
[1646527819581,1.52246865,89.585,89.557,22.5244]
[1646527819980,1.52246865,89.584,89.557,22.5244]
[1646527820382,1.52246865,89.588,89.557,22.5244]
[1646527820583,1.52246865,89.588,89.557,39.6356]
[1646527820784,1.52246865,89.587,89.557,39.6356]
[1646527822282,1.52246865,89.588,89.557,39.6356]
[1646527822683,1.52246865,89.589,89.557,39.6356]
[1646527822884,24.6549,89.599,89.557,39.6356]
[1646527822885,1.52246865,89.588,89.557,39.6356]
[1646527824485,1.52246865,89.59,89.557,39.6356]
[1646527826290,1.52246865,89.59,89.551,48.56403316]
[1646527830215,1.52246865,89.59,89.534,90.6377]
[1646527830415,1.52246865,89.584,89.534,90.6377]
[1646527831215,1.52246865,89.584,89.536,67.03]
[1646527831414,1.52246865,89.585,89.536,67.03]
[1646527831814,1.52246865,89.586,89.536,67.03]
[1646527832815,1.52246865,89.587,89.536,67.03]
[1646527834918,23.3968,89.586,89.536,67.03]
[1646527835318,24.91926865,89.586,89.536,67.03]
[1646527839622,23.3968,89.586,89.536,67.03]
[1646527841220,23.3968,89.586,89.537,22.8963044]
[1646527845424,24.91926865,89.586,89.537,22.8963044]
[1646527845822,23.3968,89.586,89.537,22.8963044]
[1646527846224,1.52246865,89.585,89.537,22.8963044]
[1646527847824,1.52246865,89.584,89.537,22.8963044]
[1646527848326,1.52246865,89.581,89.537,22.8963044]
[1646527848623,1.52246865,89.58,89.537,22.8963044]
[1646527849224,1.52246865,89.579,89.535,59.69364849]
[1646527849424,1.52246865,89.577,89.535,59.69364849]
[1646527850025,1.52246865,89.578,89.535,59.69364849]
[1646527850225,1.52246865,89.577,89.535,59.69364849]
[1646527850627,1.52246865,89.576,89.535,59.69364849]
[1646527851029,1.52246865,89.577,89.536,67.03]
[1646527851226,1.52246865,89.577,89.536,89.9263044]
[1646527851526,1.52246865,89.576,89.536,89.9263044]
[1646527851725,1.52246865,89.577,89.536,89.9263044]
[1646527854226,1.52246865,89.577,89.536,67.03]
[1646527854928,1.52246865,89.576,89.536,67.03]
[1646527855128,1.52246865,89.577,89.536,67.03]
[1646527855733,1.52246865,89.576,89.536,76.5]
[1646527855929,1.52246865,89.583,89.541,67.03]
[1646527856129,1.52246865,89.585,89.542,5.582]
[1646527856330,1.52246865,89.584,89.542,5.582]
[1646527856531,1.52246865,89.585,89.542,5.582]
[1646527857233,1.52246865,89.584,89.542,5.582]
[1646527857433,1.52246865,89.583,89.542,5.582]
[1646527857634,1.52246865,89.583,89.541,67.03]
[1646527858034,1.52246865,89.584,89.541,67.03]
[1646527858238,1.52246865,89.583,89.541,67.03]
[1646527858437,1.52246865,89.582,89.541,67.03]
[1646527859435,1.52246865,89.583,89.541,67.03]
[1646527860240,1.52246865,89.584,89.541,67.03]
[1646527860437,23.3968,89.586,89.541,67.03]
[1646527860438,1.52246865,89.58,89.541,67.03]
[1646527860637,1.52246865,89.577,89.541,67.03]
[1646527861237,1.52246865,89.576,89.541,67.03]
[1646527861838,1.52246865,89.577,89.541,67.03]
[1646527862640,1.52246865,89.579,89.541,67.03]
[1646527862841,23.3968,89.586,89.541,67.03]
[1646527862842,1.52246865,89.577,89.542,5.582]
[1646527863248,1.52246865,89.578,89.542,5.582]
[1646527863942,1.52246865,89.579,89.542,5.582]
[1646527865945,1.52246865,89.578,89.542,5.582]
[1646527866344,1.52246865,89.578,89.541,67.03]
[1646527866543,1.52246865,89.579,89.541,67.03]
[1646527866944,1.52246865,89.577,89.541,67.03]
[1646527868945,1.52246865,89.578,89.541,67.03]
[1646527871564,1.52246865,89.579,89.541,67.03]
[1646527873265,1.52246865,89.579,89.542,5.582]
[1646527876169,1.52246865,89.582,89.542,5.582]
[1646527876968,1.52246865,89.582,89.551,67.03]
[1646527877169,1.52246865,89.591,89.561,67.03]
[1646527877369,6.10543613,89.615,89.561,67.03]
[1646527877370,1.52246865,89.607,89.563,67.03]
[1646527877569,1.52246865,89.611,89.563,67.03]
[1646527877768,1.52246865,89.613,89.566,67.03]
[1646527877968,1.52246865,89.614,89.567,5.581]
[1646527878169,1.52246865,89.614,89.568,67.03]
[1646527878371,1.52246865,89.614,89.569,5.58]
[1646527878570,1.52246865,89.614,89.571,67.03]
[1646527878775,1.52246865,89.614,89.572,5.58]
[1646527878973,1.52246865,89.614,89.572,8.41613526]
[1646527879170,1.52246865,89.614,89.573,24.0162]
[1646527879472,1.52246865,89.61,89.573,24.0162]
[1646527879772,1.52246865,89.609,89.572,2.83613526]
[1646527879972,1.52246865,89.607,89.56,2.83613526]
[1646527880171,1.52246865,89.597,89.552,47.47796488]
[1646527880371,1.52246865,89.598,89.552,47.47796488]
[1646527880573,1.52246865,89.597,89.552,47.47796488]
[1646527880771,1.52246865,89.598,89.552,47.47796488]
[1646527881174,1.52246865,89.599,89.552,47.47796488]
[1646527881572,1.52246865,89.598,89.552,47.47796488]
[1646527881974,1.52246865,89.597,89.552,47.47796488]
[1646527882176,1.52246865,89.598,89.552,47.47796488]
[1646527882716,1.52246865,89.597,89.552,47.47796488]
[1646527883377,1.52246865,89.598,89.552,47.47796488]
[1646527884080,1.52246865,89.598,89.553,24.33018113]
[1646527887280,1.52246865,89.599,89.553,24.33018113]
[1646527889284,1.52246865,89.599,89.554,67.03]
[1646527889482,1.52246865,89.603,89.554,67.03]
[1646527889784,1.52246865,89.609,89.556,67.03]
[1646527889982,1.52246865,89.609,89.561,67.03]
[1646527890185,1.52246865,89.61,89.563,67.03]
[1646527890584,1.52246865,89.608,89.563,67.03]
[1646527890983,5.581,89.627,89.563,67.03]
[1646527890984,1.52246865,89.607,89.563,67.03]
[1646527891182,1.52246865,89.608,89.563,67.03]
[1646527891983,1.52246865,89.607,89.563,67.03]
[1646527892185,1.52246865,89.609,89.563,67.03]
[1646527892583,1.52246865,89.61,89.563,67.03]
[1646527893386,1.52246865,89.609,89.563,67.03]
[1646527895487,1.52246865,89.61,89.563,67.03]
[1646527896088,1.52246865,89.609,89.563,67.03]
[1646527897090,1.52246865,89.61,89.563,67.03]
[1646527898291,1.52246865,89.609,89.563,67.03]
[1646527898692,1.52246865,89.61,89.563,67.03]
[1646527899292,1.52246865,89.609,89.563,67.03]
[1646527899494,1.52246865,89.608,89.563,67.03]
[1646527899891,1.52246865,89.609,89.563,67.03]
[1646527900093,1.52246865,89.608,89.563,67.03]
[1646527900294,1.52246865,89.607,89.563,67.03]
[1646527900494,1.52246865,89.605,89.563,67.03]
[1646527900697,1.52246865,89.604,89.563,67.03]
[1646527901096,1.52246865,89.605,89.563,67.03]
[1646527901303,1.52246865,89.603,89.563,67.03]
[1646527901496,1.52246865,89.602,89.563,67.03]
[1646527901693,1.52246865,89.603,89.563,67.03]
[1646527903396,1.52246865,89.603,89.564,2.83613526]
[1646527903694,26.50479652,89.628,89.564,2.83613526]
[1646527903695,1.52246865,89.615,89.565,67.03]
[1646527903898,1.52246865,89.615,89.565,92.96887878]
[1646527904096,1.52246865,89.616,89.566,2.83613526]
[1646527904297,1.52246865,89.613,89.571,67.03]
[1646527904496,1.52246865,89.614,89.571,67.03]
[1646527904700,1.52246865,89.613,89.572,2.83613526]
[1646527904901,1.52246865,89.614,89.573,67.03]
[1646527905398,1.52246865,89.613,89.574,2.83613526]
[1646527906198,1.52246865,89.615,89.574,2.83613526]
[1646527907504,1.52246865,89.616,89.574,2.83613526]
[1646527908312,1.52246865,89.615,89.574,2.83613526]
[1646527908912,1.52246865,89.614,89.574,2.83613526]
[1646527910112,1.52246865,89.615,89.574,2.83613526]
[1646527910816,1.52246865,89.614,89.574,2.83613526]
[1646527911414,1.52246865,89.615,89.574,2.83613526]
[1646527913434,1.52246865,89.614,89.574,2.83613526]
[1646527913935,1.52246865,89.615,89.574,2.83613526]
[1646527914134,1.52246865,89.614,89.574,2.83613526]
[1646527915336,1.52246865,89.614,89.573,67.03]
[1646527915539,1.52246865,89.614,89.56,16.7219]
[1646527915738,1.52246865,89.607,89.551,47.0944]
[1646527915939,1.52246865,89.601,89.551,47.0944]
[1646527916139,23.3069,89.612,89.551,47.0944]
[1646527916140,1.52246865,89.6,89.551,47.0944]
[1646527916340,1.52246865,89.599,89.551,47.0944]
[1646527916540,1.52246865,89.599,89.552,48.24503657]
[1646527918240,1.52246865,89.598,89.552,48.24503657]
[1646527919242,1.52246865,89.597,89.552,48.24503657]
[1646527920246,1.52246865,89.598,89.552,48.24503657]
[1646527920443,1.52246865,89.595,89.552,48.24503657]
[1646527920644,1.52246865,89.594,89.552,48.24503657]
[1646527921445,1.52246865,89.594,89.553,67.03]
[1646527921644,1.52246865,89.597,89.553,92.76243966]
[1646527921843,1.52246865,89.602,89.555,67.03]
[1646527922044,1.52246865,89.603,89.555,67.03]
[1646527922243,1.52246865,89.607,89.56,15.99]
[1646527922444,1.52246865,89.607,89.561,67.03]
[1646527922951,1.52246865,89.606,89.563,67.03]
[1646527924950,1.52246865,89.608,89.564,2.83613526]
[1646527925149,1.52246865,89.609,89.564,2.83613526]
[1646527925950,24.82936865,89.612,89.564,2.83613526]
[1646527928056,23.3069,89.612,89.564,2.83613526]
[1646527928454,24.82936865,89.612,89.564,2.83613526]
[1646527928857,1.52246865,89.612,89.564,2.83613526]
[1646527929055,1.52246865,89.616,89.571,67.03]
[1646527929256,30.364375,89.636,89.571,67.03]
[1646527929257,1.52246865,89.621,89.573,67.03]
[1646527929456,1.52246865,89.622,89.573,67.03]
[1646527929856,1.52246865,89.621,89.574,2.83613526]
[1646527930855,1.52246865,89.619,89.574,2.83613526]
[1646527931258,1.52246865,89.618,89.574,2.83613526]
[1646527932858,1.52246865,89.62,89.574,2.83613526]
[1646527933659,1.52246865,89.619,89.574,2.83613526]
[1646527933859,1.52246865,89.621,89.574,2.83613526]
[1646527934058,1.52246865,89.622,89.574,2.83613526]
[1646527936467,1.52246865,89.623,89.574,2.83613526]
[1646527937271,1.52246865,89.624,89.574,2.83613526]
[1646527937869,1.52246865,89.623,89.574,2.83613526]
[1646527939193,1.52246865,89.62,89.573,67.03]
[1646527940091,5.58,89.625,89.573,67.03]
[1646527940092,1.52246865,89.619,89.573,67.03]
[1646527940993,1.52246865,89.62,89.573,67.03]
[1646527941892,1.52246865,89.62,89.574,2.83613526]
[1646527942296,5.58,89.625,89.574,2.83613526]
[1646527942297,1.52246865,89.621,89.574,2.83613526]
[1646527942696,1.52246865,89.622,89.574,2.83613526]
[1646527942895,1.52246865,89.621,89.574,2.83613526]
[1646527944998,1.52246865,89.622,89.574,2.83613526]
[1646527945199,1.52246865,89.621,89.574,2.83613526]
[1646527947403,1.52246865,89.618,89.574,2.83613526]
[1646527950503,1.52246865,89.617,89.574,2.83613526]
[1646527950703,1.52246865,89.618,89.574,2.83613526]
[1646527952208,1.52246865,89.617,89.574,2.83613526]
[1646527953908,1.52246865,89.616,89.574,2.83613526]
[1646527955109,1.52246865,89.615,89.574,2.83613526]
[1646527956410,1.52246865,89.614,89.574,2.83613526]
[1646527956609,1.52246865,89.616,89.574,2.83613526]
[1646527957017,1.52246865,89.617,89.574,2.83613526]
[1646527957814,1.52246865,89.618,89.574,2.83613526]
[1646527958011,1.52246865,89.617,89.574,2.83613526]
[1646527958211,1.52246865,89.616,89.574,2.83613526]
[1646527960719,1.52246865,89.615,89.574,2.83613526]
[1646527960914,1.52246865,89.616,89.574,2.83613526]
[1646527961116,1.52246865,89.617,89.574,2.83613526]
[1646527964440,1.52246865,89.618,89.574,2.83613526]
[1646527964623,1.52246865,89.617,89.574,2.83613526]
[1646527969927,1.52246865,89.617,89.573,67.03]
[1646527970133,29.5979,89.626,89.573,67.03]
[1646527970134,1.52246865,89.606,89.573,67.03]
[1646527970929,1.52246865,89.605,89.573,67.03]
[1646527971330,1.52246865,89.604,89.573,67.03]
[1646527972159,1.52246865,89.605,89.573,67.03]
[1646527973160,1.52246865,89.606,89.573,67.03]
[1646527973359,1.52246865,89.607,89.573,67.03]
[1646527974061,1.52246865,89.607,89.573,69.86613526]
[1646527974359,1.52246865,89.609,89.573,69.86613526]
[1646527976162,1.52246865,89.61,89.574,5.58]
[1646527976369,1.52246865,89.61,89.573,69.86613526]
[1646527977964,1.52246865,89.612,89.573,69.86613526]
[1646527978965,1.52246865,89.612,89.574,5.58]
[1646527979367,1.52246865,89.612,89.573,67.03]
[1646527979565,1.52246865,89.611,89.573,67.03]
[1646527979865,1.52246865,89.61,89.573,67.03]
[1646527980466,1.52246865,89.608,89.573,67.03]
[1646527980765,1.52246865,89.607,89.573,67.03]
[1646527980964,1.52246865,89.612,89.573,67.03]
[1646527982069,1.52246865,89.61,89.573,67.03]
[1646527982469,1.52246865,89.613,89.573,67.03]
[1646527983367,1.52246865,89.612,89.573,67.03]
[1646527983867,1.52246865,89.614,89.573,69.86613526]
[1646527984267,1.52246865,89.613,89.573,69.86613526]
[1646527984668,1.52246865,89.614,89.573,69.86613526]
[1646527985069,22.6606,89.615,89.573,69.86613526]
[1646527987470,22.6606,89.615,89.574,5.58]
[1646527987871,24.18306865,89.615,89.574,5.58]
[1646527988067,1.52246865,89.609,89.573,69.86613526]
[1646527988270,1.52246865,89.608,89.573,69.86613526]
[1646527991173,1.52246865,89.61,89.573,69.86613526]
[1646527992175,1.52246865,89.611,89.573,69.86613526]
[1646527993375,1.52246865,89.61,89.573,69.86613526]
[1646527993775,24.18306865,89.615,89.573,69.86613526]
[1646527993975,22.6606,89.615,89.573,69.86613526]
[1646527994175,24.18306865,89.615,89.573,69.86613526]
[1646527994580,24.18306865,89.615,89.574,5.58]
[1646527995480,22.6606,89.615,89.574,5.58]
[1646527995880,24.18306865,89.615,89.574,5.58]
[1646527996082,22.6606,89.615,89.574,5.58]
[1646527997184,24.18306865,89.615,89.574,5.58]
[1646527997683,1.52246865,89.607,89.573,67.03]
[1646527997884,1.52246865,89.603,89.573,67.03]
[1646527998083,18.15991103,89.602,89.573,67.03]
[1646527998304,19.68237968,89.602,89.573,67.03]
[1646527998503,18.15991103,89.602,89.573,67.03]
[1646527998806,1.52246865,89.602,89.573,67.03]
[1646527999002,1.52246865,89.604,89.573,67.03]
[1646528001206,1.52246865,89.605,89.573,67.03]
[1646528001604,1.52246865,89.604,89.573,67.03]
[1646528004508,1.52246865,89.604,89.573,72.611]
[1646528006311,1.52246865,89.604,89.573,67.03]
[1646528010417,1.52246865,89.603,89.573,67.03]
[1646528010618,1.52246865,89.602,89.573,67.03]
[1646528010818,1.52246865,89.603,89.573,67.03]
[1646528011018,5.581,89.614,89.573,67.03]
[1646528011019,1.52246865,89.602,89.573,67.03]
[1646528011618,1.52246865,89.603,89.573,67.03]
[1646528012221,1.52246865,89.603,89.561,5.581]
[1646528012419,1.52246865,89.601,89.561,5.581]
[1646528012621,1.52246865,89.6,89.561,5.581]
[1646528012820,1.52246865,89.596,89.561,5.581]
[1646528013222,1.52246865,89.593,89.561,5.581]
[1646528013723,8.76248367,89.589,89.561,5.581]
[1646528013920,1.52246865,89.588,89.56,3.2064353]
[1646528014822,7.24001502,89.589,89.56,3.2064353]
[1646528017325,1.52246865,89.592,89.56,3.2064353]
[1646528017526,1.52246865,89.594,89.56,3.2064353]
[1646528017726,1.52246865,89.592,89.56,3.2064353]
[1646528018127,1.52246865,89.594,89.56,3.2064353]
[1646528018327,58.41200554,89.591,89.56,3.2064353]
[1646528019127,1.52246865,89.595,89.56,3.2064353]
[1646528019332,1.52246865,89.596,89.56,3.2064353]
[1646528020131,1.52246865,89.598,89.56,3.2064353]
[1646528020431,1.52246865,89.599,89.56,3.2064353]
[1646528020631,1.52246865,89.609,89.561,2.83613526]
[1646528020828,1.52246865,89.607,89.561,2.83613526]
[1646528021434,1.52246865,89.607,89.563,67.03]
[1646528021831,1.52246865,89.608,89.564,2.83613526]
[1646528022231,1.52246865,89.607,89.564,2.83613526]
[1646528022831,49.83313805,89.61,89.564,2.83613526]
[1646528022832,1.52246865,89.608,89.564,2.83613526]
[1646528023031,1.52246865,89.607,89.564,2.83613526]
[1646528023933,1.52246865,89.608,89.564,2.83613526]
[1646528024736,1.52246865,89.609,89.564,2.83613526]
[1646528025736,1.52246865,89.608,89.564,2.83613526]
[1646528025938,1.52246865,89.607,89.564,2.83613526]
[1646528027038,1.52246865,89.608,89.564,2.83613526]
[1646528028943,1.52246865,89.609,89.564,2.83613526]
[1646528029342,1.52246865,89.608,89.564,2.83613526]
[1646528029741,1.52246865,89.609,89.563,67.03]
[1646528032264,1.52246865,89.609,89.564,5.581]
[1646528034461,1.52246865,89.609,89.561,5.581]
[1646528035263,1.52246865,89.609,89.561,72.611]
[1646528035464,5.581,89.608,89.561,67.03]
[1646528036467,7.10346865,89.609,89.561,67.03]
[1646528036666,7.10346865,89.609,89.56,3.2064353]
[1646528038868,1.52246865,89.609,89.561,5.581]
[1646528039668,1.52246865,89.609,89.56,3.2064353]
[1646528039870,1.52246865,89.602,89.56,3.2064353]
[1646528040070,1.52246865,89.59,89.56,3.2064353]
[1646528040268,1.52246865,89.578,89.56,3.2064353]
[1646528040468,1.52246865,89.571,89.56,3.2064353]
[1646528040869,5.582,89.57,89.56,3.2064353]
[1646528041073,3.03219997,89.569,89.56,3.2064353]
[1646528042271,1.52246865,89.582,89.56,3.2064353]
[1646528042474,1.52246865,89.587,89.56,3.2064353]
[1646528042673,25.32896865,89.588,89.56,3.2064353]
[1646528044273,23.8065,89.588,89.56,3.2064353]